fUSD/lending_fUSD_20251213
["ID","MTS","AMOUNT","RATE_DAILY","PERIOD"]
[398430513,1765645832207,-342.0,0.00016292,2]
[398430514,1765645832216,-271.36866743,0.00016292,2]
[398430515,1765645832226,-1097.92,0.00016292,2]
[398430516,1765645832236,-150.0,0.0001632,2]
[398430517,1765645832246,-995.0,0.00016347,2]
[398430518,1765645832256,-969.17,0.00016367,2]
[398430519,1765645832267,-170.0,0.00016373,2]
[398430520,1765645832277,-150.0,0.0001638,2]
[398430521,1765645832287,-500.0,0.0001638,2]
[398430522,1765645832297,-995.0,0.00016402,2]
[398430523,1765645832307,-1392.60385665,0.00016404,2]
[398430524,1765645832316,-287.21734372,0.0001643,2]
[398430525,1765645832324,-802.40723931,0.00016438,2]
[398430526,1765645832333,-150.0,0.0001644,2]
[398430527,1765645832342,-995.0,0.00016457,2]
[398430528,1765645832351,-150.0,0.00016457,2]
[398430529,1765645832359,-500.0,0.00016459,2]
[398430530,1765645832368,-500.0,0.00016459,2]
[398430531,1765645832377,-150.0,0.000165,2]
[398430532,1765645832385,-995.0,0.00016512,2]
[398430533,1765645832394,-500.0,0.0001653,2]
[398430534,1765645832403,-150.0,0.0001656,2]
[398430535,1765645832411,-150.0,0.0001656,2]
[398430536,1765645832420,-1097.92,0.00016565,2]
[398430537,1765645832430,-995.0,0.00016567,2]
[398430538,1765645832439,-995.0,0.00016622,2]
[398430539,1765645832449,-500.0,0.00016654,2]
[398430540,1765645832459,-995.0,0.00016677,2]
[398430541,1765645832469,-150.0,0.0001668,2]
[398430542,1765645832478,-168.27,0.00016712,2]
[398430543,1765645832489,-150.0,0.00016714,2]
[398430544,1765645832499,-150.0,0.0001674,2]
[398430545,1765645832509,-150.0,0.000168,2]
[398430546,1765645832518,-150.0,0.000168,2]
[398430547,1765645832528,-150.0,0.000168,2]
[398430548,1765645832538,-150.0,0.000168,2]
[398430549,1765645832548,-1097.92,0.00016839,2]
[398430550,1765645832558,-500.0,0.00016917,2]
[398430551,1765645832568,-500.0,0.00016917,2]
[398430552,1765645832578,-150.0,0.0001692,2]
[398430553,1765645832592,-150.0,0.0001692,2]
[398430554,1765645832602,-2548.552,0.00016922,2]
[398430555,1765645832613,-172.902,0.00016922,2]
[398430556,1765645832624,-165.47,0.00016923,2]
[398430557,1765645832634,-500.0,0.00016928,2]
[398430558,1765645832644,-167.14674989,0.0001694,2]
[398430559,1765645832655,-150.0,0.00016971,2]
[398430560,1765645832665,-166.96872211,0.00016973,2]
[398430561,1765645832675,-362.943865,0.00016973,2]
[398430562,1765645832688,-500.0,0.00016973,2]
[398430563,1765645832699,-500.52668444,0.00016973,2]
[398430564,1765645832709,-500.0,0.00016973,2]
[398430565,1765645832719,-223.83121583,0.00016973,2]
[398430566,1765645832730,-500.0,0.00016973,2]
[398430567,1765645832741,-500.0,0.00016973,2]
[398430568,1765645832751,-500.0,0.00016973,2]
[398430569,1765645832760,-500.0,0.00016973,2]
[398430570,1765645832773,-500.0,0.00016973,2]
[398430571,1765645832783,-500.0,0.00016973,2]
[398430572,1765645832794,-500.0,0.00016973,2]
[398430573,1765645832804,-500.0,0.00016973,2]
[398430574,1765645832814,-500.0,0.00016973,2]
[398430575,1765645832824,-421.6135628,0.00016973,2]
[398430576,1765645832833,-500.0,0.00016985,2]
[398430577,1765645832843,-500.0,0.00016985,2]
[398430578,1765645832853,-500.0,0.00016985,2]
[398430579,1765645832863,-500.0,0.00016985,2]
[398430580,1765645832873,-500.0,0.00016985,2]
[398430581,1765645832883,-500.0,0.00016985,2]
[398430582,1765645832895,-432.288922,0.00016985,2]
[398430583,1765645832905,-409.46734405,0.00016985,2]
[398430584,1765645832916,-500.0,0.00016985,2]
[398430585,1765645832928,-500.0,0.00016985,2]
[398430586,1765645832940,-500.0,0.00016985,2]
[398430587,1765645832951,-500.0,0.00016985,2]
[398430588,1765645832962,-500.0,0.00016985,2]
[398430589,1765645832974,-500.0,0.00016985,2]
[398430590,1765645832985,-500.0,0.00016985,2]
[398430591,1765645832997,-500.0,0.00016986,2]
[398430592,1765645833007,-150.0,0.00016986,2]
[398430593,1765645833017,-200.90634028,0.00016986,2]
[398430594,1765645834388,-299.09365972,0.00016986,2]
[398430595,1765645834398,-150.0,0.00016986,2]
[398430596,1765645834408,-156.45165699,0.00016986,2]
[398430597,1765645834418,-150.0,0.00016986,2]
[398430598,1765645834427,-150.0,0.00016986,2]
[398430599,1765645834437,-150.0,0.00016986,2]
[398430600,1765645834446,-150.0,0.00016986,2]
[398430601,1765645834456,-48.87277006,0.00016986,2]
[398430603,1765645837698,-451.12722994,0.00016986,2]
[398430604,1765645837707,-168.00488833,0.00016986,2]
[398430605,1765645837717,-150.0,0.00016986,2]
[398430606,1765645837726,-15728.66,0.00016986,2]
[398430607,1765645837735,-500.0,0.00016999,2]
[398430608,1765645837744,-500.0,0.00016999,2]
[398430609,1765645837753,-500.0,0.00016999,2]
[398430610,1765645837763,-2000.0,0.00017,2]
[398430611,1765645837772,-250.0,0.00017,2]
[398430612,1765645837781,-1324.0,0.00017007,2]
[398430613,1765645837790,-1606.0,0.00017007,2]
[398430614,1765645837800,-1261.0,0.00017007,2]
[398430615,1765645837810,-642.0,0.00017007,2]
[398430616,1765645837819,-1196.0,0.00017007,2]
[398430617,1765645837828,-910.0,0.00017007,2]
[398430618,1765645837837,-6520.0,0.00017007,2]
[398430619,1765645837847,-2426.0,0.00017007,2]
[398430620,1765645837856,-341.34360172,0.00017023,2]
[398430621,1765645837865,-150.0,0.0001704,2]
[398430622,1765645837878,-481.04173315,0.00017047,2]
[398430623,1765645837888,-168.0,0.00017052,2]
[398430624,1765645837898,-261.3046919,0.0001709,2]
[398430625,1765645837907,-150.0,0.000171,2]
[398430626,1765645837916,-150.0,0.000171,2]
[398430627,1765645837926,-1097.92,0.00017113,2]
[398430628,1765645837935,-150.881,0.00017118,2]
[398430629,1765645837945,-611.0,0.00017118,2]
[398430630,1765645837954,-3449.0,0.00017118,2]
[398430631,1765645837964,-500.0,0.00017123,2]
[398430632,1765645837973,-515.4333116,0.00017123,2]
[398430633,1765645837983,-150.0,0.00017123,2]
[398430634,1765645837992,-500.0,0.00017123,2]
[398430635,1765645838002,-500.0,0.00017123,2]
[398430636,1765645838011,-150.0,0.00017123,2]
[398430637,1765645838021,-150.0,0.00017123,2]
[398430638,1765645838034,-150.0,0.00017123,2]
[398430639,1765645838043,-150.0,0.00017123,2]
[398430641,1765645838053,-151.0906704,0.00017123,2]
[398430643,1765645838062,-267.97401164,0.00017123,2]
[398430644,1765645838073,-500.0,0.00017123,2]
[398430646,1765645838082,-150.0,0.00017123,2]
[398430648,1765645838092,-500.0,0.00017123,2]
[398430650,1765645838101,-685.0,0.00017123,2]
[398430652,1765645838112,-152.6264382,0.00017123,2]
[398430654,1765645838122,-500.0,0.00017123,2]
[398430656,1765645838131,-500.0,0.00017123,2]
[398430658,1765645838140,-689.69261819,0.00017132,2]
[398430660,1765645838150,-150.0,0.0001716,2]
[398430662,1765645838159,-500.0,0.00017202,2]
[398430664,1765645838169,-150.0,0.00017229,2]
[398430666,1765645838179,-150.0,0.0001726,2]
[398430668,1765645838188,-500.0,0.0001726,2]
[398430670,1765645838198,-500.0,0.0001726,2]
[398430672,1765645838207,-203.60065798,0.0001726,2]
[398430675,1765645838217,-150.0,0.0001726,2]
[398430677,1765645838227,-500.0,0.0001726,2]
[398430678,1765645838236,-500.0,0.0001726,2]
[398430680,1765645838246,-685.0,0.0001726,2]
[398430683,1765645838256,-500.0,0.0001726,2]
[398430685,1765645838266,-500.0,0.0001726,2]
[398430686,1765645838275,-500.0,0.0001726,2]
[398430688,1765645838284,-150.0,0.0001728,2]
[398430690,1765645838294,-150.0,0.0001728,2]
[398430692,1765645838303,-200.0,0.0001736,2]
[398430694,1765645838313,-503.7849045,0.00017374,2]
[398430696,1765645838322,-40709.368,0.00017375,2]
[398430699,1765645838333,-15836.39016363,0.00017375,2]
[398430700,1765645838343,-1097.92,0.00017387,2]
[398430701,1765645838353,-167.82291889,0.00017397,2]
[398430702,1765645838364,-500.0,0.00017397,2]
[398430703,1765645838374,-500.0,0.00017397,2]
[398430704,1765645838383,-500.0,0.00017397,2]
[398430705,1765645838393,-685.0,0.00017397,2]
[398430706,1765645838403,-500.0,0.00017397,2]
[398430707,1765645838412,-150.0,0.00017397,2]
[398430708,1765645838422,-150.0,0.000174,2]
[398430709,1765645838431,-150.0,0.000174,2]
[398430710,1765645838441,-150.0,0.000174,2]
[398430711,1765645838450,-150.0,0.000174,2]
[398430712,1765645838460,-1359.03,0.000174,2]
[398430713,1765645838470,-763.0,0.00017415,2]
[398430714,1765645838479,-200.0,0.00017417,2]
[398430715,1765645838489,-15836.3901636,0.00017433,2]
[398430716,1765645838498,-1680.0,0.00017458,2]
[398430717,1765645838508,-150.0,0.0001746,2]
[398430718,1765645838518,-1110.49710129,0.00017475,3]
[398430719,1765645838528,-300.0,0.00017475,2]
[398430720,1765645838538,-300.0,0.00017475,2]
[398430721,1765645838548,-300.0,0.00017475,2]
[398430722,1765645838558,-300.0,0.00017475,2]
[398430724,1765645838568,-300.0,0.00017475,2]
[398430726,1765645838577,-250.0,0.00017475,2]
[398430728,1765645838587,-300.0,0.00017475,2]
[398430730,1765645838596,-2500.0,0.00017475,2]
[398430732,1765645838606,-2500.0,0.00017475,2]
[398430734,1765645838616,-2500.0,0.00017475,2]
[398430736,1765645838625,-2500.0,0.00017475,2]
[398430738,1765645838635,-2500.0,0.00017475,2]
[398430740,1765645838645,-193.0,0.00017475,2]
[398430742,1765645838654,-151.09704785,0.00017475,2]
[398430744,1765645838663,-195.0,0.00017475,2]
[398430746,1765645838673,-500.0,0.00017476,2]
[398430748,1765645838682,-150.0,0.00017486,2]
[398430750,1765645838691,-15836.3901636,0.00017492,2]
[398430752,1765645838700,-150.0,0.0001752,2]
[398430753,1765645838710,-1000.0,0.00017521,2]
[398430754,1765645838719,-1000.0,0.00017521,2]
[398430755,1765645838728,-1000.0,0.00017521,2]
[398430756,1765645838738,-500.0,0.00017534,2]
[398430757,1765645838751,-500.0,0.00017534,2]
[398430758,1765645838760,-500.0,0.00017534,2]
[398430759,1765645838770,-685.0,0.00017534,2]
[398430760,1765645838779,-500.0,0.00017534,2]
[398430761,1765645838789,-500.0,0.00017534,2]
[398430762,1765645838798,-15836.3901636,0.0001755,2]
[398430763,1765645838808,-568.06099927,0.00017571,2]
[398430764,1765645838817,-151.0,0.00017605,2]
[398430765,1765645838826,-15836.3901636,0.00017608,2]
[398430766,1765645838836,-568.06099924,0.00017618,2]
[398430767,1765645838846,-150.0,0.0001764,2]
[398430768,1765645838855,-150.0,0.0001764,2]
[398430769,1765645838865,-1993.7293448,0.0001764,2]
[398430770,1765645838875,-420.0,0.00017643,2]
[398430771,1765645838884,-1680.0,0.00017644,2]
[398430772,1765645838893,-311.1,0.00017661,2]
[398430773,1765645838903,-151.0,0.00017661,2]
[398430774,1765645838912,-1097.92,0.00017661,2]
[398430775,1765645838921,-568.06099924,0.00017665,2]
[398430776,1765645838930,-15836.3901636,0.00017667,2]
[398430777,1765645838940,-500.0,0.00017671,2]
[398430778,1765645839312,-500.0,0.00017671,2]
[398430779,1765645839321,-500.0,0.00017671,2]
[398430780,1765645839329,-685.0,0.00017671,2]
[398430781,1765645839338,-195.39785189,0.00017671,2]
[398430782,1765645839347,-150.0,0.00017671,2]
[398430783,1765645839356,-150.0,0.00017671,2]
[398430784,1765645839366,-1359.03,0.00017674,2]
[398430785,1765645839375,-221.56818859,0.00017681,2]
[398430786,1765645839386,-168.0,0.00017682,2]
[398430787,1765645839397,-150.0,0.000177,2]
[398430788,1765645839407,-568.06099924,0.00017712,2]
[398430789,1765645839417,-197.6739,0.00017722,2]
[398430790,1765645839427,-150.0,0.00017725,2]
[398430791,1765645839437,-150.0,0.00017725,2]
[398430792,1765645839448,-150.0,0.00017725,2]
[398430793,1765645839457,-150.0,0.00017725,2]
[398430794,1765645839467,-150.0,0.00017725,2]
[398430795,1765645839476,-150.60890833,0.00017725,2]
[398430796,1765645839486,-150.0,0.00017725,2]
[398430797,1765645839495,-150.0,0.00017725,2]
[398430798,1765645839504,-15836.3901636,0.00017725,2]
[398430799,1765645839515,-5477.63756173,0.00017742,2]
[398430800,1765645839524,-150.0,0.00017743,2]
[398430801,1765645839534,-500.0,0.0001775,2]
[398430802,1765645839543,-568.06099924,0.00017759,2]
[398430803,1765645839552,-5477.63756173,0.0001776,2]
[398430804,1765645839562,-150.0,0.0001776,2]
[398430805,1765645839571,-168.0,0.00017776,2]
[398430806,1765645839581,-5477.63756173,0.00017777,2]
[398430807,1765645839590,-6094.0,0.00017783,2]
[398430808,1765645839599,-15836.3901636,0.00017783,2]
[398430809,1765645839608,-5477.63756173,0.00017795,2]
[398430810,1765645839618,-198.323,0.000178,2]
[398430811,1765645839627,-284.18035971,0.000178,2]
[398430812,1765645839636,-161.54315636,0.000178,2]
[398430813,1765645839645,-568.06099924,0.00017806,2]
[398430814,1765645839655,-500.0,0.00017808,2]
[398430815,1765645839664,-326.57223857,0.00017808,2]
[398430817,1765645839673,-685.0,0.00017808,2]
[398430818,1765645839682,-500.0,0.00017808,2]
[398430819,1765645839691,-500.0,0.00017808,2]
[398430820,1765645839700,-5477.63756173,0.00017812,2]
[398430821,1765645839710,-150.0,0.0001782,2]
[398430822,1765645839723,-5477.63756173,0.0001783,2]
[398430823,1765645839738,-25000.0,0.00017838,3]
[398430824,1765645839747,-15836.3901636,0.00017842,2]
[398430825,1765645839756,-25000.0,0.00017847,3]
[398430826,1765645839765,-5477.63756173,0.00017847,2]
[398430827,1765645839774,-568.06099924,0.00017853,2]
[398430828,1765645839783,-25000.0,0.00017856,3]
[398430829,1765645839793,-150.0,0.00017862,2]
[398430830,1765645839803,-150.0,0.00017862,2]
[398430831,1765645839812,-228.40381269,0.00017862,2]
[398430832,1765645839821,-211.93404787,0.00017862,2]
[398430833,1765645839830,-150.0,0.00017862,2]
[398430834,1765645839840,-25000.0,0.00017865,3]
[398430835,1765645839849,-5477.63756173,0.00017865,2]
[398430836,1765645839859,-500.0,0.00017873,2]
[398430837,1765645839870,-25000.0,0.00017874,3]
[398430838,1765645839880,-25000.0,0.00017874,3]
[398430839,1765645839888,-151.0,0.00017879,2]
[398430840,1765645839897,-150.0,0.0001788,2]
[398430841,1765645839904,-25000.0,0.00017882,3]
[398430842,1765645839913,-25000.0,0.00017882,3]
[398430843,1765645839922,-5477.63756173,0.00017882,2]
[398430844,1765645839931,-25000.0,0.00017891,3]
[398430845,1765645839940,-25000.0,0.00017891,3]
[398430846,1765645839950,-151.0,0.00017897,2]
[398430847,1765645839959,-500.0,0.00017899,2]
[398430848,1765645839968,-975.8142,0.000179,2]
[398430849,1765645839978,-10000.0,0.000179,2]
[398430850,1765645839987,-2662.39039003,0.000179,2]
[398430851,1765645839996,-25000.0,0.000179,3]
[398430852,1765645840005,-14295.51602528,0.000179,2]
[398430853,1765645840019,-561.03195139,0.000179,2]
[398430854,1765645840033,-979.84218693,0.000179,2]
[398430855,1765645840042,-10663.69105104,0.000179,3]
[398430856,1765645840054,-1583.53603552,0.000179,3]
[398430857,1765645840086,-492.59061917,0.000179,3]
[398430859,1765645840122,-3627.5,0.000179,3]
[398430860,1765645840133,-4903.630008,0.000179,3]
[398430861,1765645840145,-3729.05228627,0.000179,3]
[398430862,1765645840155,-1463.72261933,0.000179,2]
[398430864,1765645840167,-2274.62305427,0.000179,2]
[398430866,1765645840176,-347.25268631,0.000179,3]
[398430868,1765645840187,-5477.63756173,0.000179,2]
[398430870,1765645840195,-2668.1154188,0.000179,2]
[398430872,1765645840204,-494.19685013,0.000179,2]
[398430874,1765645840215,-699.17410878,0.000179,2]
[398430876,1765645840225,-161.54315635,0.000179,2]
[398430877,1765645840234,-568.06099924,0.000179,2]
[398430879,1765645840244,-186.639345,0.000179,2]
[398430880,1765645840253,-1097.92,0.00017935,2]
[398430881,1765645840262,-500.0,0.00017945,2]
[398430882,1765645840272,-685.0,0.00017945,2]
[398430883,1765645840282,-500.0,0.00017945,2]
[398430884,1765645840291,-1240.46,0.00017948,2]
[398430885,1765645840300,-5007.0,0.00017973,2]
[398430886,1765645840309,-500.0,0.00017973,2]
[398430887,1765645840319,-500.0,0.00017973,2]
[398430888,1765645840328,-500.0,0.00017973,2]
[398430889,1765645840338,-500.0,0.00017973,2]
[398430890,1765645840347,-500.0,0.00017973,2]
[398430891,1765645840355,-500.0,0.00017973,2]
[398430892,1765645840364,-500.0,0.00017973,2]
[398430893,1765645840374,-566.62084446,0.00017973,2]
[398430894,1765645840383,-500.0,0.00017973,2]
[398430895,1765645840392,-500.0,0.00017973,2]
[398430896,1765645840401,-500.0,0.00017973,2]
[398430897,1765645840411,-500.0,0.00017973,2]
[398430898,1765645840420,-500.0,0.00017973,2]
[398430899,1765645840429,-567.32208643,0.00017973,2]
[398430900,1765645840438,-330.25327919,0.00017973,2]
[398430901,1765645840447,-500.0,0.00017973,2]
[398430902,1765645840457,-500.0,0.00017973,2]
[398430903,1765645840466,-500.0,0.00017973,2]
[398430904,1765645840475,-500.0,0.00017973,2]
[398430905,1765645840484,-500.0,0.00017973,2]
[398430906,1765645840493,-500.0,0.00017973,2]
[398430907,1765645840502,-500.0,0.00017973,2]
[398430908,1765645840511,-500.0,0.00017973,2]
[398430909,1765645840520,-500.0,0.00017973,2]
[398430910,1765645840529,-500.0,0.00017973,2]
[398430911,1765645840539,-500.0,0.00017973,2]
[398430912,1765645840548,-500.0,0.00017973,2]
[398430913,1765645840558,-165.28083173,0.00017973,2]
[398430914,1765645840567,-500.0,0.00017973,2]
[398430915,1765645840578,-500.0,0.00017973,2]
[398430916,1765645840587,-500.0,0.00017973,2]
[398430917,1765645840596,-500.0,0.00017973,2]
[398430918,1765645840606,-500.0,0.00017973,2]
[398430919,1765645840617,-500.0,0.00017973,2]
[398430920,1765645840626,-500.0,0.00017973,2]
[398430921,1765645840635,-300.0,0.00017973,2]
[398430922,1765645840645,-213.979238,0.00017973,2]
[398430923,1765645840654,-3702.7740275,0.00017974,2]
[398430924,1765645840663,-3471.1465121,0.00017974,2]
[398430925,1765645840674,-139.1585182,0.00017974,2]
[398430926,1765645840683,-9001.89220571,0.00017974,2]
[398430936,1765645842883,-563.0,0.00017185,2]
[398430937,1765645842893,-668.45983,0.00017974,2]
[398430938,1765645842939,-330.28996395,0.00017974,2]
[398430945,1765645845843,-1200.0,0.00017974,2]
[398430946,1765645845931,-33953.98172804,0.00017974,2]
[398430947,1765645845941,-393.86514332,0.0001799,2]
[398430948,1765645845951,-393.86514332,0.0001799,2]
[398430949,1765645845960,-393.86514332,0.0001799,2]
[398430950,1765645845970,-209.47559237,0.00017997,2]
[398430951,1765645845980,-150.0,0.00017999,2]
[398430953,1765645845989,-218.23294611,0.00017999,2]
[398430954,1765645845998,-150.0,0.00017999,2]
[398430955,1765645846008,-150.0,0.00017999,2]
[398430956,1765645846017,-500.0,0.00017999,2]
[398430957,1765645846027,-500.0,0.00017999,2]
[398430958,1765645846040,-500.0,0.00017999,2]
[398430959,1765645846049,-500.0,0.00017999,2]
[398430960,1765645846059,-500.0,0.00017999,2]
[398430961,1765645846068,-500.0,0.00017999,2]
[398430962,1765645846079,-500.0,0.00017999,2]
[398430963,1765645846088,-500.0,0.00017999,2]
[398430965,1765645846097,-500.0,0.00017999,2]
[398430967,1765645846107,-500.0,0.00017999,2]
[398430968,1765645846116,-500.0,0.00017999,2]
[398430969,1765645846126,-472.0717495,0.00017999,2]
[398430970,1765645846135,-150.0,0.00018,2]
[398430971,1765645846144,-150.0,0.00018,2]
[398430972,1765645846153,-150.0,0.00018,2]
[398430973,1765645846163,-150.0,0.00018,2]
[398430974,1765645846172,-150.0,0.00018,2]
[398430975,1765645846181,-150.0,0.00018,2]
[398430976,1765645846190,-243.35649499,0.00018,2]
[398430977,1765645846199,-220223.89229641,0.00018,2]
[398430978,1765645846210,-287.46302223,0.00018,2]
[398431010,1765646467761,2891.24,7.945e-05,2]
[398431071,1765646614072,150.0,0.0001602,120]
[398431072,1765646664463,196.61120716,0.000225,120]
[398431081,1765646814797,228.76,7.9e-05,2]
[398431082,1765646815358,228.76,8.316e-05,2]
[398431083,1765646815385,228.76,8.732e-05,2]
[398431084,1765646815413,228.76,9.148e-05,2]
[398431085,1765646822994,228.76,9.563e-05,2]
[398431086,1765646823205,228.76,9.979e-05,2]
[398431087,1765646823428,228.76,0.00010395,2]
[398431088,1765646823648,228.76,0.00010811,2]
[398431089,1765646823892,228.76,0.00011227,2]
[398431090,1765646824095,228.76,0.00011642,2]
[398431091,1765646824367,228.76,0.00012058,2]
[398431093,1765646827803,1292.4,7.945e-05,2]
[398431094,1765646827823,10000.0,7.945e-05,2]
[398431095,1765646827844,7740.6,7.945e-05,2]
[398431099,1765646829984,228.76,0.00012474,2]
[398431100,1765646830213,228.76,0.0001289,2]
[398431101,1765646830419,228.76,0.00013306,2]
[398431102,1765646830645,228.76,0.00013721,2]
[398431103,1765646830848,228.76,0.00014137,2]
[398431104,1765646831044,228.76,0.00014553,2]
[398431105,1765646831243,228.76,0.00014969,2]
[398431106,1765646831441,228.76,0.00015385,2]
[398431107,1765646831848,228.76,0.000158,2]
[398431113,1765646922017,200.56,0.00015,2]
[398431114,1765646922036,402.26325398,0.00015,2]
[398431115,1765646967791,18.73674602,0.0001544,2]
[398431116,1765646967812,136.09325398,0.0001544,2]
[398431117,1765646981151,1862.93,0.00015426,2]
[398431119,1765647006360,-300.0,0.00015899,2]
[398431120,1765647006381,-1200.0,0.00015899,2]
[398431121,1765647006401,-300.0,0.00015899,2]
[398431122,1765647006420,-195.0,0.000159,2]
[398431123,1765647006444,-8005.0,0.000159,2]
[398431124,1765647011233,-4760.0,0.000159,2]
[398431125,1765647015868,-8000.97674602,0.000159,2]
[398431132,1765647031791,-388.29480477,0.000159,2]
[398431133,1765647031802,-4601.88688597,0.000159,2]
[398431135,1765647031813,-4400.0939247,0.000159,2]
[398431136,1765647031825,-500.0,0.000159,2]
[398431137,1765647031846,-1119.94014192,0.000159,2]
[398431138,1765647031857,-23576.0,0.000159,2]
[398431139,1765647031867,-1472.73296337,0.000159,2]
[398431140,1765647031901,-328.0184482,0.000159,2]
[398431141,1765647031912,-280.65162114,0.000159,2]
[398431142,1765647031922,-702.53762416,0.000159,2]
[398431143,1765647031956,-7790.70026846,0.000159,2]
[398431144,1765647032013,-27182.99197129,0.000159,2]
[398431145,1765647032022,-353.15723237,0.000159,2]
[398431146,1765647032036,-353.15723235,0.000159,2]
[398431147,1765647032055,-195.0,0.0001591,2]
[398431148,1765647032072,-195.0,0.00015918,2]
[398431149,1765647032090,-2187.52161868,0.0001592,2]
[398431150,1765647032106,-660.37615232,0.0001592,2]
[398431152,1765647032126,-250.0,0.0001596,2]
[398431155,1765647032144,-250.0,0.00015988,2]
[398431160,1765647032162,-151.0,0.00015997,2]
[398431165,1765647032180,-151.0,0.00015997,2]
[398431169,1765647032196,-1200.0,0.00015999,2]
[398431174,1765647032214,-500.0,0.00015999,2]
[398431179,1765647032229,-500.0,0.00015999,2]
[398431184,1765647032246,-400.18940227,0.00015999,2]
[398431187,1765647032262,-746.1649143,0.00016,2]
[398431191,1765647032278,-48206.0172983,0.00016,2]
[398431194,1765647032298,-407.76266405,0.00016,2]
[398431198,1765647032325,-1898.90392692,0.00016,2]
[398431201,1765647032344,-600.11131002,0.00016,2]
[398431261,1765647037919,-353.15723235,0.000159,2]
[398431262,1765647037928,-2207.43319035,0.00016,2]
[398431263,1765647037940,-984.039998,0.00016,2]
[398431264,1765647037976,-389.43608,0.00016,2]
[398431265,1765647037987,-27303.79431553,0.00016,2]
[398431266,1765647037999,-2228.81895163,0.00016,2]
[398431267,1765647038131,-13091.01807414,0.00016,2]
[398431268,1765647038142,-6408.5329189,0.00016,2]
[398431269,1765647038152,-41145.43854997,0.00016,4]
[398431270,1765647038164,-583786.63369858,0.00016,4]
[398431272,1765647038174,-150.0,0.0001602,2]
[398431274,1765647038184,-1000.0,0.00016032,2]
[398431276,1765647038193,-490.53,0.00016081,2]
[398431278,1765647038204,-500.0,0.00016127,2]
[398431280,1765647038215,-150.0,0.000162,2]
[398431281,1765647038226,-150.0,0.000162,2]
[398431282,1765647038235,-150.0,0.000162,2]
[398431283,1765647038245,-150.0,0.000162,2]
[398431284,1765647038254,-150.0,0.000162,2]
[398431285,1765647038263,-150.0,0.000162,2]
[398431286,1765647038273,-150.0,0.000162,2]
[398431287,1765647038283,-150.0,0.000162,2]
[398431288,1765647038292,-150.0,0.000162,2]
[398431289,1765647038302,-150.0,0.000162,2]
[398431290,1765647038311,-150.0,0.000162,2]
[398431291,1765647038321,-5000.00083788,0.000162,5]
[398431292,1765647038331,-660.37615225,0.00016203,2]
[398431293,1765647038342,-500.0,0.00016226,2]
[398431294,1765647038351,-1826.07,0.00016265,2]
[398431295,1765647038361,-161.54315636,0.00016325,2]
[398431296,1765647038370,-150.0,0.00016364,2]
[398431297,1765647038380,-151.0,0.00016397,2]
[398431298,1765647038390,-56295.3216974,0.000164,2]
[398431299,1765647038407,-357.33319928,0.000164,2]
[398431300,1765647038419,-302.64238328,0.000164,2]
[398431303,1765647039925,-10463.17828889,0.000164,2]
[398431304,1765647039981,-986.30007543,0.000164,2]
[398431305,1765647040035,-334688.69313131,0.000164,2]
[398431306,1765647040044,-158.93317944,0.000164,2]